[Event "Late-Titled-Tuesday-Blitz-March-05-2024"]
[Site "Chess.com"]
[Date "2024.03.05"]
[Round "1"]
[White "Casper"]
[Black "Harsha_Bharathakoti"]
[Result "0-1"]
[WhiteElo "2517"]
[BlackElo "2966"]
[TimeControl "180+1"]
[EndTime "14:01:37 PST"]
[Termination "Harsha_Bharathakoti won by resignation"]

1. Nf3 {[%clk 0:03:00.9]} 1... d5 {[%clk 0:02:50.5]} 2. b3 {[%clk 0:03:01.8]}
2... Bf5 {[%clk 0:02:48.8]} 3. Bb2 {[%clk 0:03:02.3]} 3... e6 {[%clk 0:02:49.3]}
4. e3 {[%clk 0:03:02.9]} 4... h6 {[%clk 0:02:48.9]} 5. Be2 {[%clk 0:03:02.7]}
5... Nf6 {[%clk 0:02:49.5]} 6. O-O {[%clk 0:03:03.6]} 6... Be7 {[%clk 0:02:50]}
7. c4 {[%clk 0:03:04.2]} 7... O-O {[%clk 0:02:49.5]} 8. Nc3 {[%clk 0:03:04.8]}
8... c6 {[%clk 0:02:49.9]} 9. d4 {[%clk 0:03:05.2]} 9... Nbd7 {[%clk 0:02:50]}
10. Bd3 {[%clk 0:03:05.8]} 10... Bxd3 {[%clk 0:02:49.9]} 11. Qxd3 {[%clk
0:03:06.7]} 11... Qa5 {[%clk 0:02:48.3]} 12. a3 {[%clk 0:03:05.2]} 12... Rad8
{[%clk 0:02:47.6]} 13. e4 {[%clk 0:02:58.1]} 13... dxc4 {[%clk 0:02:22.1]} 14.
Qxc4 {[%clk 0:02:52.5]} 14... e5 {[%clk 0:02:22.3]} 15. dxe5 {[%clk 0:02:51.6]}
15... Nxe5 {[%clk 0:02:22.4]} 16. Nxe5 {[%clk 0:02:52.5]} 16... Qxe5 {[%clk
0:02:22.7]} 17. Nd5 {[%clk 0:02:53.1]} 17... cxd5 {[%clk 0:02:16.6]} 0-1

[Event "Late-Titled-Tuesday-Blitz-March-05-2024"]
[Site "Chess.com"]
[Date "2024.03.05"]
[Round "1"]
[White "andrzej"]
[Black "VojtechPlat"]
[Result "0-1"]
[WhiteElo "2492"]
[BlackElo "2851"]
[TimeControl "180+1"]
[EndTime "14:02:20 PST"]
[Termination "VojtechPlat won by resignation"]

1. e4 {[%clk 0:03:00.9]} 1... d6 {[%clk 0:02:23.2]} 2. d4 {[%clk 0:03:00.6]}
2... Nf6 {[%clk 0:02:23.6]} 3. Nc3 {[%clk 0:03:00.8]} 3... e5 {[%clk 0:02:24.2]}
4. Nf3 {[%clk 0:03:00.9]} 4... exd4 {[%clk 0:02:24.2]} 5. Nxd4 {[%clk
0:02:59.6]} 5... g6 {[%clk 0:02:24.4]} 6. Be3 {[%clk 0:02:56.9]} 6... Bg7 {[%clk
0:02:24.7]} 7. f3 {[%clk 0:02:57]} 7... O-O {[%clk 0:02:24.6]} 8. Qd2 {[%clk
0:02:57.5]} 8... d5 {[%clk 0:02:22.8]} 9. Bg5 {[%clk 0:02:37.6]} 9... dxe4
{[%clk 0:02:21.1]} 10. Nxe4 {[%clk 0:02:36.6]} 10... Nxe4 {[%clk 0:02:20.7]} 11.
Bxd8 {[%clk 0:02:24]} 11... Nxd2 {[%clk 0:02:20.5]} 12. Kxd2 {[%clk 0:02:08.9]}
12... Rxd8 {[%clk 0:02:19.5]} 0-1

[Event "Late-Titled-Tuesday-Blitz-March-05-2024"]
[Site "Chess.com"]
[Date "2024.03.05"]
[Round "1"]
[White "Zavgorodniy_Sergiy"]
[Black "Teidi96"]
[Result "1-0"]
[WhiteElo "2619"]
[BlackElo "2312"]
[TimeControl "180+1"]
[EndTime "14:03:00 PST"]
[Termination "Zavgorodniy_Sergiy won by resignation"]

1. d4 {[%clk 0:03:00.9]} 1... Nf6 {[%clk 0:02:50.9]} 2. c4 {[%clk 0:03:00.7]}
2... e6 {[%clk 0:02:51.2]} 3. Nf3 {[%clk 0:03:00.8]} 3... d5 {[%clk 0:02:51.1]}
4. e3 {[%clk 0:03:01.1]} 4... Be7 {[%clk 0:02:51.3]} 5. Nbd2 {[%clk 0:03:00.7]}
5... O-O {[%clk 0:02:51.3]} 6. Bd3 {[%clk 0:03:01]} 6... a6 {[%clk 0:02:49.4]}
7. O-O {[%clk 0:03:00.5]} 7... dxc4 {[%clk 0:02:49.7]} 8. Nxc4 {[%clk
0:03:00.3]} 8... b5 {[%clk 0:02:50.2]} 9. Nce5 {[%clk 0:03:00.7]} 9... Bb7
{[%clk 0:02:50.7]} 10. a4 {[%clk 0:03:00.5]} 10... b4 {[%clk 0:02:50.3]} 11. b3
{[%clk 0:03:00.8]} 11... c5 {[%clk 0:02:48.5]} 12. Bb2 {[%clk 0:02:59.6]} 12...
Nbd7 {[%clk 0:02:45.8]} 13. Rc1 {[%clk 0:02:58.4]} 13... cxd4 {[%clk 0:02:44.1]}
14. Bxd4 {[%clk 0:02:57.1]} 14... Nxe5 {[%clk 0:02:42.4]} 15. Nxe5 {[%clk
0:02:58]} 15... Qd5 {[%clk 0:02:26.9]} 16. f3 {[%clk 0:02:57.5]} 16... Rac8
{[%clk 0:02:11]} 17. Qe2 {[%clk 0:02:56.5]} 17... Qxb3 {[%clk 0:02:05.4]} 18.
Bxa6 {[%clk 0:02:54.1]} 18... Bxa6 {[%clk 0:01:45.5]} 19. Qxa6 {[%clk 0:02:55]}
19... Nd5 {[%clk 0:01:28.8]} 20. Rxc8 {[%clk 0:02:52.7]} 20... Nxe3 {[%clk
0:01:22.6]} 21. Rxf8+ {[%clk 0:02:46.3]} 21... Bxf8 {[%clk 0:01:23.5]} 22. Qa7
{[%clk 0:02:43.1]} 22... Nxf1 {[%clk 0:01:20.4]} 23. Qxf7+ {[%clk 0:02:41.2]}
1-0

[Event "Late-Titled-Tuesday-Blitz-March-05-2024"]
[Site "Chess.com"]
[Date "2024.03.05"]
[Round "1"]
[White "Sanan_Sjugirov"]
[Black "corvachesky"]
[Result "1-0"]
[WhiteElo "2995"]
[BlackElo "2520"]
[TimeControl "180+1"]
[EndTime "14:03:21 PST"]
[Termination "Sanan_Sjugirov won by resignation"]

1. e4 {[%clk 0:03:00.9]} 1... c6 {[%clk 0:02:58.7]} 2. d4 {[%clk 0:03:00.7]}
2... d5 {[%clk 0:02:59.6]} 3. e5 {[%clk 0:03:01.4]} 3... c5 {[%clk 0:02:59.3]}
4. dxc5 {[%clk 0:03:00.7]} 4... e6 {[%clk 0:02:59.4]} 5. Nf3 {[%clk 0:02:59.4]}
5... Nd7 {[%clk 0:02:56.7]} 6. c3 {[%clk 0:02:57.5]} 6... Nxc5 {[%clk
0:02:55.9]} 7. Nbd2 {[%clk 0:02:55.3]} 7... Ne7 {[%clk 0:02:53.3]} 8. Nb3 {[%clk
0:02:55.5]} 8... Ng6 {[%clk 0:02:49.1]} 9. h4 {[%clk 0:02:51.8]} 9... Be7 {[%clk
0:02:40.9]} 10. h5 {[%clk 0:02:49.7]} 10... Nf8 {[%clk 0:02:41.5]} 11. h6 {[%clk
0:02:48.4]} 11... g6 {[%clk 0:02:41.8]} 12. Nxc5 {[%clk 0:02:44]} 12... Bxc5
{[%clk 0:02:41.4]} 13. Bg5 {[%clk 0:02:40.4]} 13... Be7 {[%clk 0:02:40.9]} 14.
Qd2 {[%clk 0:02:28.7]} 14... Nd7 {[%clk 0:02:38.7]} 15. Bb5 {[%clk 0:02:23.8]}
15... a6 {[%clk 0:02:36.9]} 16. Bxd7+ {[%clk 0:02:23.7]} 16... Bxd7 {[%clk
0:02:36.1]} 17. O-O {[%clk 0:02:12.6]} 17... Bxg5 {[%clk 0:02:30.7]} 18. Nxg5
{[%clk 0:02:12.8]} 18... Qe7 {[%clk 0:02:23.7]} 19. Rfe1 {[%clk 0:02:08.8]}
19... O-O {[%clk 0:02:17.7]} 20. Nf3 {[%clk 0:02:04]} 20... Rac8 {[%clk
0:02:09.8]} 21. Rad1 {[%clk 0:01:56.1]} 21... Ba4 {[%clk 0:02:07.7]} 22. Rc1
{[%clk 0:01:53.7]} 22... Rc7 {[%clk 0:02:00.9]} 23. Qf4 {[%clk 0:01:49.9]} 23...
Rfc8 {[%clk 0:01:55.2]} 24. Qxa4 {[%clk 0:01:49.7]} 1-0

[Event "Late-Titled-Tuesday-Blitz-March-05-2024"]
[Site "Chess.com"]
[Date "2024.03.05"]
[Round "1"]
[White "Fh2411"]
[Black "Burgsvik"]
[Result "1-0"]
[WhiteElo "2649"]
[BlackElo "2361"]
[TimeControl "180+1"]
[EndTime "14:03:41 PST"]
[Termination "Fh2411 won by resignation"]

1. d4 {[%clk 0:03:00.9]} 1... c5 {[%clk 0:03:00]} 2. d5 {[%clk 0:02:57.4]} 2...
g6 {[%clk 0:02:59.6]} 3. c4 {[%clk 0:02:53.6]} 3... Bg7 {[%clk 0:03:00.5]} 4.
Nc3 {[%clk 0:02:52.4]} 4... Na6 {[%clk 0:03:00.5]} 5. Nf3 {[%clk 0:02:48]} 5...
d6 {[%clk 0:03:00.8]} 6. Bf4 {[%clk 0:02:37.5]} 6... Nc7 {[%clk 0:03:00.6]} 7.
h3 {[%clk 0:02:22]} 7... Bd7 {[%clk 0:02:49.5]} 8. a4 {[%clk 0:02:17.7]} 8...
Na6 {[%clk 0:02:42.7]} 9. e3 {[%clk 0:02:13]} 9... Nb4 {[%clk 0:02:42.6]} 10.
Be2 {[%clk 0:02:12]} 10... Nh6 {[%clk 0:02:42]} 11. O-O {[%clk 0:02:09.6]} 11...
a6 {[%clk 0:02:41.2]} 12. Qd2 {[%clk 0:02:04.9]} 12... f6 {[%clk 0:02:37.7]} 13.
Na2 {[%clk 0:01:34.1]} 13... a5 {[%clk 0:02:36.2]} 14. Nc3 {[%clk 0:01:32.1]}
14... Nf7 {[%clk 0:02:35.7]} 15. Rae1 {[%clk 0:01:28.6]} 15... O-O {[%clk
0:02:34.8]} 16. b3 {[%clk 0:01:22]} 16... e5 {[%clk 0:02:34.5]} 17. dxe6 {[%clk
0:01:12.9]} 17... Bxe6 {[%clk 0:02:34.3]} 18. Rd1 {[%clk 0:01:13.5]} 18... f5
{[%clk 0:02:28.7]} 19. Nb5 {[%clk 0:01:04.6]} 19... d5 {[%clk 0:02:21.4]} 20.
Nc7 {[%clk 0:01:01.1]} 20... Rc8 {[%clk 0:02:16.7]} 21. Nxe6 {[%clk 0:01:00.4]}
1-0

[Event "Late-Titled-Tuesday-Blitz-March-05-2024"]
[Site "Chess.com"]
[Date "2024.03.05"]
[Round "1"]
[White "Azerichess"]
[Black "EsmeraldasAnderson03"]
[Result "1-0"]
[WhiteElo "3050"]
[BlackElo "2523"]
[TimeControl "180+1"]
[EndTime "14:03:55 PST"]
[Termination "Azerichess won by resignation"]

1. d4 {[%clk 0:03:00.9]} 1... d5 {[%clk 0:02:58.5]} 2. c4 {[%clk 0:03:00.4]}
2... dxc4 {[%clk 0:02:59.4]} 3. Nf3 {[%clk 0:02:59.9]} 3... Nf6 {[%clk 0:03:00]}
4. e3 {[%clk 0:03:00.1]} 4... a6 {[%clk 0:03:00.1]} 5. Bxc4 {[%clk 0:02:57.9]}
5... e6 {[%clk 0:03:00.8]} 6. O-O {[%clk 0:02:57.8]} 6... c5 {[%clk 0:03:01]} 7.
b3 {[%clk 0:02:57.7]} 7... Be7 {[%clk 0:02:54.8]} 8. Bb2 {[%clk 0:02:57.1]} 8...
O-O {[%clk 0:02:54.4]} 9. dxc5 {[%clk 0:02:55.4]} 9... Bxc5 {[%clk 0:02:52.3]}
10. Nbd2 {[%clk 0:02:55.4]} 10... b6 {[%clk 0:02:50.5]} 11. Rc1 {[%clk
0:02:53.1]} 11... Bb7 {[%clk 0:02:50.5]} 12. Qc2 {[%clk 0:02:53.3]} 12... Nc6
{[%clk 0:02:47.7]} 13. Rfd1 {[%clk 0:02:48.8]} 13... Qe7 {[%clk 0:02:47.3]} 14.
Ng5 {[%clk 0:02:47.7]} 14... e5 {[%clk 0:02:31.8]} 15. a3 {[%clk 0:02:29.3]}
15... Bxa3 {[%clk 0:01:38]} 16. Bxa3 {[%clk 0:02:28.8]} 16... Qxa3 {[%clk
0:01:38.9]} 17. Nxf7 {[%clk 0:02:08.1]} 17... Rxf7 {[%clk 0:01:37.8]} 18. Bxf7+
{[%clk 0:02:09]} 18... Kxf7 {[%clk 0:01:38]} 19. Nc4 {[%clk 0:02:09.1]} 19...
Rd8 {[%clk 0:00:59.7]} 20. Nxa3 {[%clk 0:02:06.3]} 1-0

[Event "Late-Titled-Tuesday-Blitz-March-05-2024"]
[Site "Chess.com"]
[Date "2024.03.05"]
[Round "1"]
[White "Hongjin"]
[Black "Dzidzik2203"]
[Result "1-0"]
[WhiteElo "2672"]
[BlackElo "2389"]
[TimeControl "180+1"]
[EndTime "14:03:56 PST"]
[Termination "Hongjin won by resignation"]

1. e4 {[%clk 0:02:58.4]} 1... c5 {[%clk 0:02:58.8]} 2. Be2 {[%clk 0:02:56.8]}
2... d5 {[%clk 0:02:57.8]} 3. d3 {[%clk 0:02:51.4]} 3... Nf6 {[%clk 0:02:53.1]}
4. e5 {[%clk 0:02:27.7]} 4... Nfd7 {[%clk 0:02:52.7]} 5. f4 {[%clk 0:02:27.2]}
5... Nc6 {[%clk 0:02:52.2]} 6. Nf3 {[%clk 0:02:26.4]} 6... e6 {[%clk 0:02:47.3]}
7. O-O {[%clk 0:02:22.5]} 7... a6 {[%clk 0:02:44.6]} 8. c4 {[%clk 0:02:22.1]}
8... Nb6 {[%clk 0:02:40.5]} 9. Nc3 {[%clk 0:02:07.1]} 9... Be7 {[%clk
0:02:39.8]} 10. Qe1 {[%clk 0:01:59.9]} 10... Nd4 {[%clk 0:02:30]} 11. Nxd4
{[%clk 0:01:54.3]} 11... cxd4 {[%clk 0:02:30.9]} 12. Nd1 {[%clk 0:01:54]} 12...
dxc4 {[%clk 0:02:29.1]} 13. dxc4 {[%clk 0:01:53.3]} 13... d3 {[%clk 0:02:29.4]}
14. Bf3 {[%clk 0:01:53.4]} 14... Nxc4 {[%clk 0:02:29.5]} 15. Qc3 {[%clk
0:01:52.8]} 15... b5 {[%clk 0:02:19.9]} 16. Bxa8 {[%clk 0:01:50.2]} 16... O-O
{[%clk 0:02:09.5]} 17. Be3 {[%clk 0:01:41.1]} 17... Qc7 {[%clk 0:01:39.1]} 18.
b3 {[%clk 0:01:27.7]} 1-0

[Event "Late-Titled-Tuesday-Blitz-March-05-2024"]
[Site "Chess.com"]
[Date "2024.03.05"]
[Round "1"]
[White "jcibarra"]
[Black "MFatigue"]
[Result "1-0"]
[WhiteElo "2944"]
[BlackElo "2511"]
[TimeControl "180+1"]
[EndTime "14:04:14 PST"]
[Termination "jcibarra won by checkmate"]

1. e4 {[%clk 0:03:00.2]} 1... e6 {[%clk 0:03:00.2]} 2. d4 {[%clk 0:02:59.6]}
2... d5 {[%clk 0:03:00.8]} 3. Nc3 {[%clk 0:02:59.7]} 3... Nf6 {[%clk 0:03:01.3]}
4. Bg5 {[%clk 0:02:59.1]} 4... Be7 {[%clk 0:03:01.3]} 5. e5 {[%clk 0:02:59.3]}
5... Nfd7 {[%clk 0:03:01.6]} 6. Bxe7 {[%clk 0:02:59.7]} 6... Qxe7 {[%clk
0:03:02.5]} 7. Qg4 {[%clk 0:02:59.5]} 7... O-O {[%clk 0:03:01.5]} 8. Bd3 {[%clk
0:02:59]} 8... c5 {[%clk 0:02:49.6]} 9. Nf3 {[%clk 0:02:57.3]} 9... f5 {[%clk
0:02:43.5]} 10. exf6 {[%clk 0:02:56]} 10... Nxf6 {[%clk 0:02:43.6]} 11. Qh4
{[%clk 0:02:56.3]} 11... cxd4 {[%clk 0:02:42.5]} 12. Bxh7+ {[%clk 0:02:48.2]}
12... Kf7 {[%clk 0:02:42.5]} 13. Bg6+ {[%clk 0:02:13.1]} 13... Kxg6 {[%clk
0:01:59]} 14. Ne5+ {[%clk 0:02:11]} 14... Kf5 {[%clk 0:01:59.7]} 15. g4+ {[%clk
0:01:18]} 15... Kxe5 {[%clk 0:01:27.4]} 16. Qg3# {[%clk 0:01:01]} 1-0

[Event "Late-Titled-Tuesday-Blitz-March-05-2024"]
[Site "Chess.com"]
[Date "2024.03.05"]
[Round "1"]
[White "finec2"]
[Black "yaguigor"]
[Result "0-1"]
[WhiteElo "2202"]
[BlackElo "2573"]
[TimeControl "180+1"]
[EndTime "14:04:14 PST"]
[Termination "yaguigor won by resignation"]

1. e4 {[%clk 0:03:00.3]} 1... c5 {[%clk 0:02:58.8]} 2. Nf3 {[%clk 0:03:00.2]}
2... Nc6 {[%clk 0:02:57.8]} 3. Bb5 {[%clk 0:02:59.7]} 3... g6 {[%clk 0:02:56.5]}
4. O-O {[%clk 0:02:59.6]} 4... Bg7 {[%clk 0:02:55.9]} 5. Re1 {[%clk 0:02:59.5]}
5... Nf6 {[%clk 0:02:54.4]} 6. e5 {[%clk 0:02:59.4]} 6... Nd5 {[%clk 0:02:54.2]}
7. Nc3 {[%clk 0:03:00.2]} 7... Nc7 {[%clk 0:02:54.8]} 8. Bxc6 {[%clk 0:03:00.3]}
8... dxc6 {[%clk 0:02:55.6]} 9. Ne4 {[%clk 0:03:00.9]} 9... b6 {[%clk
0:02:55.5]} 10. Nf6+ {[%clk 0:03:00.8]} 10... Kf8 {[%clk 0:02:56]} 11. Ne4
{[%clk 0:03:00.7]} 11... Bg4 {[%clk 0:02:56.7]} 12. d3 {[%clk 0:03:00.4]} 12...
Ne6 {[%clk 0:02:51.3]} 13. h3 {[%clk 0:02:52.9]} 13... Bxf3 {[%clk 0:02:50.4]}
14. Qxf3 {[%clk 0:02:52.6]} 14... Bxe5 {[%clk 0:02:39.3]} 15. Nxc5 {[%clk
0:02:44.3]} 15... Nd4 {[%clk 0:02:35.3]} 16. Qd1 {[%clk 0:02:38.2]} 16... Bg7
{[%clk 0:02:32.3]} 17. Ne4 {[%clk 0:02:34.2]} 17... h6 {[%clk 0:02:30.7]} 18. c3
{[%clk 0:02:30.9]} 18... Nf5 {[%clk 0:02:29.7]} 19. d4 {[%clk 0:02:28.4]} 19...
Kg8 {[%clk 0:02:26.8]} 20. Bf4 {[%clk 0:02:27.8]} 20... Kh7 {[%clk 0:02:25.8]}
21. Qd2 {[%clk 0:02:21.9]} 21... Re8 {[%clk 0:02:20.1]} 22. Rad1 {[%clk
0:02:21]} 22... Qd5 {[%clk 0:02:15.2]} 23. b3 {[%clk 0:02:18.5]} 23... Rad8
{[%clk 0:02:13.6]} 24. g4 {[%clk 0:02:03.9]} 24... Nh4 {[%clk 0:02:10.8]} 25.
Qe2 {[%clk 0:02:03.6]} 25... f5 {[%clk 0:02:05.7]} 26. Bg3 {[%clk 0:01:57.4]}
26... g5 {[%clk 0:01:44.6]} 27. c4 {[%clk 0:01:29.1]} 27... Qxe4 {[%clk
0:01:41.5]} 0-1

[Event "Late-Titled-Tuesday-Blitz-March-05-2024"]
[Site "Chess.com"]
[Date "2024.03.05"]
[Round "1"]
[White "DraningWaterHi"]
[Black "chessisveryfun1264"]
[Result "0-1"]
[WhiteElo "2190"]
[BlackElo "2570"]
[TimeControl "180+1"]
[EndTime "14:04:16 PST"]
[Termination "chessisveryfun1264 won by checkmate"]

1. d4 {[%clk 0:03:00]} 1... e6 {[%clk 0:02:59.1]} 2. Nf3 {[%clk 0:02:52.8]} 2...
b6 {[%clk 0:02:58.6]} 3. c4 {[%clk 0:02:48.6]} 3... Bb7 {[%clk 0:02:59]} 4. Nc3
{[%clk 0:02:44.8]} 4... Bb4 {[%clk 0:02:59.1]} 5. Bd2 {[%clk 0:02:40.9]} 5... f5
{[%clk 0:02:47]} 6. g3 {[%clk 0:02:37.7]} 6... Bxf3 {[%clk 0:02:45.6]} 7. exf3
{[%clk 0:02:37.4]} 7... Nf6 {[%clk 0:02:45]} 8. Bg2 {[%clk 0:02:35.9]} 8... O-O
{[%clk 0:02:44.5]} 9. f4 {[%clk 0:02:35.1]} 9... Nc6 {[%clk 0:02:42.2]} 10. a3
{[%clk 0:02:34.4]} 10... Bxc3 {[%clk 0:02:41.1]} 11. Bxc3 {[%clk 0:02:33.8]}
11... d5 {[%clk 0:02:42]} 12. Qe2 {[%clk 0:02:17.5]} 12... Ne4 {[%clk
0:02:37.1]} 13. f3 {[%clk 0:02:16]} 13... Nxc3 {[%clk 0:02:36.9]} 14. bxc3
{[%clk 0:02:16.9]} 14... Re8 {[%clk 0:02:32.7]} 15. O-O {[%clk 0:02:14.4]} 15...
Na5 {[%clk 0:02:32.2]} 16. cxd5 {[%clk 0:02:13.5]} 16... exd5 {[%clk 0:02:31.6]}
17. Qd3 {[%clk 0:02:12.3]} 17... Nc4 {[%clk 0:02:29.4]} 18. Rfe1 {[%clk
0:02:08.3]} 18... g6 {[%clk 0:02:29]} 19. a4 {[%clk 0:02:03.4]} 19... Qd7 {[%clk
0:02:27.8]} 20. h4 {[%clk 0:01:55]} 20... Rxe1+ {[%clk 0:02:26.3]} 21. Rxe1
{[%clk 0:01:53.8]} 21... Re8 {[%clk 0:02:27.2]} 22. Rxe8+ {[%clk 0:01:51.3]}
22... Qxe8 {[%clk 0:02:28.1]} 23. Qc2 {[%clk 0:01:50.3]} 23... Qe1+ {[%clk
0:02:27.9]} 24. Kh2 {[%clk 0:01:50.4]} 24... Ne3 {[%clk 0:02:25.9]} 25. Qa2
{[%clk 0:01:45.1]} 25... a5 {[%clk 0:02:26.5]} 26. Kh3 {[%clk 0:01:43.3]} 26...
Qg1 {[%clk 0:02:24.9]} 27. Qe2 {[%clk 0:01:36.9]} 27... c5 {[%clk 0:02:24.6]}
28. h5 {[%clk 0:01:31.6]} 28... gxh5 {[%clk 0:02:21.6]} 29. Qb2 {[%clk
0:01:27.5]} 29... Qxg2+ {[%clk 0:02:18.4]} 30. Qxg2 {[%clk 0:01:26.7]} 30...
Nxg2 {[%clk 0:02:19.3]} 31. Kxg2 {[%clk 0:01:27.6]} 31... h4 {[%clk 0:02:14.2]}
32. gxh4 {[%clk 0:01:27.4]} 32... h5 {[%clk 0:02:14.9]} 33. Kf2 {[%clk
0:01:26.6]} 33... Kf7 {[%clk 0:02:14.8]} 34. Ke2 {[%clk 0:01:26.8]} 34... Ke6
{[%clk 0:02:15.5]} 35. Kd3 {[%clk 0:01:26.9]} 35... Kd6 {[%clk 0:02:16.4]} 36.
Kc2 {[%clk 0:01:25.3]} 36... Kc6 {[%clk 0:02:15.8]} 37. Kb3 {[%clk 0:01:25.3]}
37... cxd4 {[%clk 0:02:15.8]} 38. cxd4 {[%clk 0:01:25.5]} 38... b5 {[%clk
0:02:16.6]} 39. Ka3 {[%clk 0:01:25.8]} 39... bxa4 {[%clk 0:02:15.3]} 40. Kxa4
{[%clk 0:01:26.1]} 40... Kb6 {[%clk 0:02:16.2]} 41. Ka3 {[%clk 0:01:26.2]} 41...
Kb5 {[%clk 0:02:17.1]} 42. Kb3 {[%clk 0:01:26.7]} 42... a4+ {[%clk 0:02:17.7]}
43. Ka3 {[%clk 0:01:27.2]} 43... Kc4 {[%clk 0:02:18.1]} 44. Kxa4 {[%clk
0:01:28.1]} 44... Kxd4 {[%clk 0:02:18.7]} 45. Kb4 {[%clk 0:01:29]} 45... Ke3
{[%clk 0:02:19.4]} 46. Kc5 {[%clk 0:01:29.6]} 46... d4 {[%clk 0:02:20]} 47. Kd5
{[%clk 0:01:30.2]} 47... d3 {[%clk 0:02:20.6]} 48. Ke5 {[%clk 0:01:31.1]} 48...
d2 {[%clk 0:02:20.7]} 49. Kxf5 {[%clk 0:01:32]} 49... d1=Q {[%clk 0:02:21.4]}
50. Kg5 {[%clk 0:01:32.6]} 50... Qxf3 {[%clk 0:02:22]} 51. f5 {[%clk 0:01:33.5]}
51... Qg4+ {[%clk 0:02:22.1]} 52. Kf6 {[%clk 0:01:33.4]} 52... Ke4 {[%clk
0:02:22.6]} 53. Ke7 {[%clk 0:01:33.8]} 53... Qxh4+ {[%clk 0:02:22.5]} 54. f6
{[%clk 0:01:33.8]} 54... Ke5 {[%clk 0:02:23.3]} 55. Ke8 {[%clk 0:01:33.7]} 55...
Qxf6 {[%clk 0:02:24]} 56. Kd7 {[%clk 0:01:34.1]} 56... h4 {[%clk 0:02:23.8]} 57.
Ke8 {[%clk 0:01:35]} 57... Qg7 {[%clk 0:02:24.1]} 58. Kd8 {[%clk 0:01:34.6]}
58... Kd6 {[%clk 0:02:25]} 59. Kc8 {[%clk 0:01:35]} 59... Qc7# {[%clk
0:02:25.9]} 0-1

[Event "Late-Titled-Tuesday-Blitz-March-05-2024"]
[Site "Chess.com"]
[Date "2024.03.05"]
[Round "1"]
[White "BillCoe"]
[Black "Bugcrusher"]
[Result "0-1"]
[WhiteElo "2122"]
[BlackElo "2551"]
[TimeControl "180+1"]
[EndTime "14:04:17 PST"]
[Termination "Bugcrusher won by resignation"]

1. e4 {[%clk 0:03:00.9]} 1... c6 {[%clk 0:02:33.8]} 2. d4 {[%clk 0:03:00.1]}
2... d5 {[%clk 0:02:32.4]} 3. Nc3 {[%clk 0:03:00]} 3... dxe4 {[%clk 0:02:27.8]}
4. Nxe4 {[%clk 0:03:00.9]} 4... Nf6 {[%clk 0:02:27.1]} 5. Nxf6+ {[%clk
0:03:00.3]} 5... exf6 {[%clk 0:02:27.2]} 6. Nf3 {[%clk 0:02:57]} 6... Bd6 {[%clk
0:02:24]} 7. h3 {[%clk 0:02:57]} 7... O-O {[%clk 0:02:23.7]} 8. Bd3 {[%clk
0:02:54.7]} 8... Re8+ {[%clk 0:02:23]} 9. Be3 {[%clk 0:02:55]} 9... Nd7 {[%clk
0:02:22.5]} 10. O-O {[%clk 0:02:54.6]} 10... Nf8 {[%clk 0:02:22.3]} 11. c4
{[%clk 0:02:52.6]} 11... Ng6 {[%clk 0:02:22.1]} 12. Qd2 {[%clk 0:02:49.3]} 12...
Bc7 {[%clk 0:02:10.9]} 13. a3 {[%clk 0:02:47]} 13... Qd6 {[%clk 0:02:09.6]} 14.
b4 {[%clk 0:02:40.1]} 14... Nh4 {[%clk 0:02:05.7]} 15. Rfe1 {[%clk 0:02:24.1]}
15... Nxf3+ {[%clk 0:02:01.9]} 16. gxf3 {[%clk 0:02:25]} 16... Qh2+ {[%clk
0:01:58]} 17. Kf1 {[%clk 0:02:25.2]} 17... Bxh3+ {[%clk 0:01:57.8]} 18. Ke2
{[%clk 0:02:25.6]} 18... Bg2 {[%clk 0:01:33.4]} 19. Rg1 {[%clk 0:02:07]} 19...
Bf4 {[%clk 0:01:26.9]} 20. Be4 {[%clk 0:01:35]} 20... Bxe3 {[%clk 0:01:25.9]}
21. fxe3 {[%clk 0:01:27.9]} 21... Bxf3+ {[%clk 0:01:20.7]} 22. Kxf3 {[%clk
0:01:24.9]} 22... Qxd2 {[%clk 0:01:19.4]} 0-1

[Event "Late-Titled-Tuesday-Blitz-March-05-2024"]
[Site "Chess.com"]
[Date "2024.03.05"]
[Round "1"]
[White "FairChess_on_YouTube"]
[Black "LangesNasenhaar"]
[Result "1-0"]
[WhiteElo "3098"]
[BlackElo "2528"]
[TimeControl "180+1"]
[EndTime "14:04:21 PST"]
[Termination "FairChess_on_YouTube won by resignation"]

1. Nf3 {[%clk 0:03:00.9]} 1... g6 {[%clk 0:02:58]} 2. e4 {[%clk 0:03:00.3]} 2...
Bg7 {[%clk 0:02:58.3]} 3. d4 {[%clk 0:03:00.4]} 3... c6 {[%clk 0:02:59]} 4. Bd3
{[%clk 0:02:55.3]} 4... d5 {[%clk 0:02:58.8]} 5. Nbd2 {[%clk 0:02:54]} 5... dxe4
{[%clk 0:02:57.9]} 6. Nxe4 {[%clk 0:02:54.9]} 6... Nf6 {[%clk 0:02:58.2]} 7.
Nxf6+ {[%clk 0:02:55.1]} 7... exf6 {[%clk 0:02:58.3]} 8. O-O {[%clk 0:02:54.7]}
8... O-O {[%clk 0:02:58.4]} 9. Re1 {[%clk 0:02:55.1]} 9... Nd7 {[%clk
0:02:57.9]} 10. Bf4 {[%clk 0:02:54.5]} 10... Qb6 {[%clk 0:02:50.6]} 11. Bd6
{[%clk 0:02:48.7]} 11... Rd8 {[%clk 0:02:49.1]} 12. Be7 {[%clk 0:02:48.6]} 12...
Re8 {[%clk 0:02:44.7]} 13. Ba3 {[%clk 0:02:48.3]} 13... Rxe1+ {[%clk 0:02:37.2]}
14. Qxe1 {[%clk 0:02:49.2]} 14... Nf8 {[%clk 0:02:37.4]} 15. Qe8 {[%clk
0:02:44.9]} 15... Qc7 {[%clk 0:02:36.2]} 16. Re1 {[%clk 0:02:41.1]} 16... Qd7
{[%clk 0:02:25]} 17. Re7 {[%clk 0:02:14.6]} 17... Qxe8 {[%clk 0:02:22.9]} 18.
Rxe8 {[%clk 0:02:15.5]} 18... b6 {[%clk 0:02:20.4]} 19. Ba6 {[%clk 0:02:10.6]}
19... Bb7 {[%clk 0:02:07.8]} 20. Rxf8+ {[%clk 0:02:10.3]} 20... Bxf8 {[%clk
0:02:05.3]} 21. Bxb7 {[%clk 0:02:10]} 21... Rb8 {[%clk 0:02:03.7]} 22. Bxc6
{[%clk 0:02:01.4]} 22... Bxa3 {[%clk 0:02:03.1]} 23. bxa3 {[%clk 0:02:02.3]}
23... Kf8 {[%clk 0:02:03.5]} 24. Kf1 {[%clk 0:01:58.9]} 24... Ke7 {[%clk
0:02:03.9]} 25. Ke2 {[%clk 0:01:58.4]} 25... Kd6 {[%clk 0:02:04.4]} 26. d5
{[%clk 0:01:58.8]} 26... b5 {[%clk 0:01:57.8]} 27. Kd3 {[%clk 0:01:56.5]} 27...
Kc5 {[%clk 0:01:54.1]} 28. Nd2 {[%clk 0:01:54.5]} 28... f5 {[%clk 0:01:52.2]}
29. Nb3+ {[%clk 0:01:54.4]} 29... Kd6 {[%clk 0:01:50.7]} 30. Kd4 {[%clk
0:01:54.2]} 30... f6 {[%clk 0:01:38.1]} 31. Nc5 {[%clk 0:01:53.1]} 31... Ke7
{[%clk 0:01:21.5]} 32. Nb7 {[%clk 0:01:52.4]} 1-0